bitfinex-derivatives/quotes_SOLF0:USTF0_20250626
["timestamp","ask_amount","ask_price","bid_price","bid_amount"]
[1750981908695,5.20383756,138.84,138.82,13.91417767]
[1750981908889,7.1986,138.86,138.82,13.91417767]
[1750981909084,9.60344594,138.85,138.82,13.91417767]
[1750981909293,5.20389726,138.84,138.82,13.91417767]
[1750981909493,4.39888185,138.85,138.82,13.91417767]
[1750981909790,7.1986,138.86,138.82,13.91417767]
[1750981910091,157.75530487,138.87,138.83,6.71367767]
[1750981910394,157.75530487,138.87,138.83,45.57417767]
[1750981911288,5.1122371,138.86,138.84,6.71367767]
[1750981911486,157.75530487,138.87,138.84,6.71367767]
[1750981911693,5.11094408,138.86,138.84,6.71367767]
[1750981911895,164.95350487,138.87,138.83,52.77397767]
[1750981912084,5.11094348,138.86,138.84,6.71367767]
[1750981912288,157.75530487,138.87,138.84,13.91307767]
[1750981912486,157.75530487,138.87,138.84,6.71367767]
[1750981912994,5.14021818,138.86,138.84,6.71367767]
[1750981913292,157.75530487,138.87,138.84,6.71367767]
[1750981913497,164.95350487,138.87,138.84,6.71367767]
[1750981914195,164.95350487,138.87,138.83,52.77397767]
[1750981914591,164.95350487,138.87,138.84,6.71367767]
[1750981916096,164.95350487,138.87,138.83,52.77397767]
[1750981921903,3.73393366,138.86,138.83,6.71367767]
[1750981922106,3.73393366,138.86,138.82,6.71367767]
[1750981922304,3.73393366,138.84,138.82,6.71367767]
[1750981922501,7.2,138.83,138.82,6.71367767]
[1750981924203,10.93363366,138.84,138.82,6.71367767]
[1750981924405,13.28502437,138.86,138.82,6.71367767]
[1750981924594,3.73393366,138.86,138.82,6.71367767]
[1750981924796,5.13274909,138.85,138.82,6.71367767]
[1750981925104,3.73393366,138.86,138.82,6.71367767]
[1750981925308,3.73393366,138.84,138.82,6.71367767]
[1750981925804,7.2,138.83,138.8,43.13367767]
[1750981926108,3.73393366,138.84,138.8,43.13367767]
[1750981926403,10.93393366,138.84,138.8,50.33517767]
[1750981926608,10.93393366,138.84,138.8,43.13367767]
[1750981927202,7.2003,138.83,138.8,36.42]
[1750981927599,10.93353366,138.84,138.8,43.6215]
[1750981930105,10.93353366,138.84,138.8,50.33517767]
[1750981931107,7.2,138.83,138.8,50.33517767]
[1750981931500,7.2,138.83,138.8,43.13367767]
[1750981931711,3.73393366,138.84,138.8,43.13367767]
[1750981931897,3.73393366,138.84,138.79,6.71367767]
[1750981932502,7.2004,138.83,138.8,6.71367767]
[1750981933606,7.1997,138.84,138.8,6.71367767]
[1750981933804,5.11563374,138.83,138.8,6.71367767]
[1750981934011,7.1997,138.84,138.81,6.71367767]
[1750981934207,7.1991,138.85,138.81,6.71367767]
[1750981934506,9.52103519,138.84,138.81,6.71367767]
[1750981934706,7.1991,138.85,138.81,6.71367767]
[1750981934906,9.52074192,138.84,138.81,6.71367767]
[1750981935109,7.1991,138.85,138.81,6.71367767]
[1750981935807,7.1991,138.85,138.81,13.91457767]
[1750981936309,7.1991,138.85,138.81,6.71367767]
[1750981936605,7.1997,138.84,138.81,6.71367767]
[1750981941110,7.1991,138.85,138.81,13.91467767]
[1750981941407,3.73393366,138.86,138.82,6.71367767]
[1750981941610,9.52674812,138.85,138.82,6.71367767]
[1750981941806,7.1994,138.85,138.82,6.71367767]
[1750981944113,7.1994,138.85,138.83,6.71367767]
[1750981945302,7.1986,138.86,138.83,6.71367767]
[1750981945506,3.73393366,138.88,138.83,6.71367767]
[1750981945708,9.54030904,138.87,138.83,6.71367767]
[1750981945905,5.12543548,138.86,138.83,6.71367767]
[1750981946104,3.73393366,138.88,138.83,6.71367767]
[1750981946411,9.53652671,138.87,138.83,43.13367767]
[1750981946714,9.53652671,138.86,138.83,43.13367767]
[1750981946916,7.1981,138.87,138.83,43.13367767]
[1750981947215,9.53678675,138.86,138.84,6.71367767]
[1750981947416,7.1985,138.86,138.84,6.71367767]
[1750981947605,3.73393366,138.86,138.84,6.71367767]
[1750981947804,9.55113922,138.85,138.82,6.71367767]
[1750981948011,7.2005,138.82,138.81,6.71367767]
[1750981948215,8.87010037,138.82,138.8,6.71367767]
[1750981948416,5.13616671,138.81,138.78,6.71367767]
[1750981948606,3.73393366,138.8,138.78,6.71367767]
[1750981949009,7.2021,138.79,138.78,6.71367767]
[1750981949217,3.73393366,138.8,138.77,43.13367767]
[1750981949813,7.2021,138.79,138.77,43.13367767]
[1750981950509,7.2021,138.79,138.78,6.71367767]
[1750981950705,7.2021,138.79,138.77,43.13367767]
[1750981951512,7.2021,138.79,138.76,2.3318]
[1750981951513,3.73393366,138.8,138.76,6.71367767]
[1750981951717,3.73393366,138.78,138.75,6.71367767]
[1750981952411,7.2036,138.76,138.75,6.71367767]
[1750981952606,3.73393366,138.8,138.75,6.71367767]
[1750981952806,3.73393366,138.8,138.76,6.71367767]
[1750981953011,3.73393366,138.82,138.77,6.71367767]
[1750981953217,5.0838558,138.81,138.77,6.71367767]
[1750981953520,7.2019,138.8,138.77,6.71367767]
[1750981954619,7.2012,138.81,138.78,6.71367767]
[1750981954821,5.08514358,138.82,138.78,6.71367767]
[1750981955013,40.15393366,138.83,138.77,43.11367767]
[1750981955208,7.2014,138.81,138.77,43.11367767]
[1750981955512,40.15393366,138.83,138.78,6.71367767]
[1750981955823,7.2007,138.82,138.78,13.91617767]
[1750981956021,7.2007,138.82,138.79,6.71367767]
[1750981957717,10.93403366,138.83,138.79,6.71367767]
[1750981958020,3.73393366,138.83,138.79,6.71367767]
[1750981958826,3.73393366,138.83,138.78,6.71367767]
[1750981959524,7.2014,138.81,138.78,6.71367767]
[1750981960219,7.2016,138.8,138.78,6.71367767]
[1750981960519,3.73393366,138.81,138.78,6.71367767]
[1750981961422,7.2021,138.79,138.78,6.71367767]
[1750981963429,7.2021,138.79,138.77,43.11367767]
[1750981967625,7.2021,138.79,138.78,6.71367767]
[1750981967928,7.2021,138.79,138.77,43.11367767]
[1750981969130,7.2021,138.79,138.78,6.71367767]
[1750981970233,7.2017,138.8,138.78,6.71367767]
[1750981973535,3.73393366,138.79,138.76,6.71367767]
[1750981973734,3.73393366,138.79,138.75,6.71367767]
[1750981974624,7.2034,138.77,138.75,6.71367767]
[1750981975036,7.2034,138.77,138.76,6.71367767]
[1750981975934,7.2026,138.78,138.76,6.71367767]
[1750981977237,7.2031,138.77,138.75,6.71367767]
[1750981977931,7.2028,138.78,138.75,6.71367767]
[1750981978946,7.2028,138.78,138.76,6.71367767]
[1750981981247,3.73393366,138.81,138.76,6.71367767]
[1750981981741,7.2021,138.79,138.76,6.71367767]
[1750981981936,7.2021,138.79,138.77,6.71367767]
[1750981983946,7.2021,138.79,138.76,6.71367767]
[1750981985039,7.2026,138.78,138.76,6.71367767]
[1750981985247,3.73393366,138.79,138.76,6.71367767]
[1750981985443,3.73393366,138.79,138.75,6.71367767]
[1750981986347,7.2027,138.78,138.75,6.71367767]
[1750981987553,7.2032,138.77,138.75,6.71367767]
[1750981988148,7.2028,138.78,138.75,6.71367767]
[1750981988350,3.73393366,138.79,138.76,6.71367767]
[1750981988555,3.73393366,138.81,138.77,6.71367767]
[1750981989050,7.2021,138.79,138.77,6.71367767]
[1750981991358,7.2021,138.79,138.78,6.71367767]
[1750981996660,3.73393366,138.81,138.78,6.71367767]
[1750981996866,7.2017,138.8,138.78,6.71367767]
[1750981997766,7.2012,138.81,138.78,6.71367767]
[1750981998067,3.73393366,138.82,138.79,6.71367767]
[1750981998268,7.202,138.79,138.78,7.767e-05]
[1750981998459,3.73393366,138.79,138.74,2.5246]
[1750981998665,3.73393366,138.77,138.74,2.5246]
[1750981998965,10.93743366,138.77,138.74,2.5246]
[1750981999462,3.73393366,138.79,138.74,11.49795079]
[1750982000665,7.2032,138.77,138.74,11.49795079]
[1750982001964,7.2027,138.78,138.74,18.70245079]
[1750982002266,7.2027,138.78,138.75,8.97335079]
[1750982003867,7.2022,138.79,138.75,16.17735079]
[1750982004067,7.2022,138.79,138.76,8.97335079]
[1750982004468,7.2027,138.78,138.76,8.97335079]
[1750982005772,7.2027,138.78,138.75,45.35335079]
[1750982007069,7.2031,138.77,138.75,45.35335079]
[1750982007374,3.73393366,138.79,138.75,45.35335079]
[1750982007576,3.73393366,138.79,138.75,36.38]
[1750982007780,7.2036,138.77,138.74,11.49795079]
[1750982007973,3.73393366,138.79,138.74,11.49795079]
[1750982009583,7.2037,138.76,138.74,11.49795079]
[1750982010082,3.73393366,138.77,138.74,8.97335079]
[1750982010273,3.73393366,138.77,138.73,8.97335079]
[1750982011384,7.2039,138.76,138.73,8.97335079]
[1750982012485,3.73393366,138.77,138.74,8.97335079]
[1750982012486,10.93713366,138.77,138.74,8.97335079]
[1750982013276,10.93713366,138.77,138.73,8.97335079]
[1750982013481,7.2037,138.76,138.74,8.97335079]
[1750982013676,7.2037,138.76,138.73,8.97335079]
[1750982014793,7.2033,138.77,138.74,8.97335079]
[1750982015178,7.2033,138.77,138.75,8.97335079]
[1750982017284,7.2033,138.77,138.74,8.97335079]
[1750982018278,7.2033,138.77,138.75,8.97335079]
[1750982019685,36.38,138.8,138.75,8.97335079]
[1750982019885,3.73393366,138.82,138.75,49.06728445]
[1750982020188,4.10124484,138.81,138.75,49.06728445]
[1750982020388,3.73393366,138.82,138.75,49.06728445]
[1750982020690,4.10118219,138.81,138.76,8.97335079]
[1750982020989,3.73393366,138.82,138.76,8.97335079]
[1750982021287,4.10118219,138.81,138.76,8.97335079]
[1750982021490,3.73393366,138.82,138.76,8.97335079]
[1750982021690,7.2019,138.8,138.76,16.17655079]
[1750982022579,7.2019,138.8,138.76,8.97335079]
[1750982023381,7.2021,138.79,138.76,8.97335079]
[1750982023582,3.73393366,138.8,138.76,8.97335079]
[1750982023785,3.73393366,138.8,138.75,45.33335079]
[1750982024678,7.2026,138.78,138.75,45.33335079]
[1750982024884,3.73393366,138.8,138.75,45.33335079]
[1750982025093,7.2027,138.78,138.75,45.33335079]
[1750982027384,7.2031,138.77,138.75,45.33335079]
[1750982027791,7.2031,138.77,138.75,8.97335079]
[1750982031897,7.2028,138.78,138.75,8.97335079]
[1750982032094,7.2028,138.78,138.76,8.97335079]
[1750982033896,7.2022,138.79,138.76,8.97335079]
[1750982034285,7.2022,138.79,138.76,16.17685079]
[1750982034890,7.2017,138.8,138.76,52.51685079]
[1750982035590,7.2017,138.8,138.76,57.39485079]
[1750982035901,7.2017,138.8,138.77,8.97335079]
[1750982036498,7.2017,138.8,138.76,57.39485079]
[1750982036898,7.2017,138.8,138.77,8.97335079]
[1750982038402,7.2017,138.8,138.77,16.17635079]
[1750982039803,7.2011,138.81,138.77,16.17635079]
[1750982040002,5.06176558,138.8,138.77,16.17635079]
[1750982040199,7.2011,138.81,138.77,16.17635079]
[1750982040404,5.06176558,138.8,138.77,16.17635079]
[1750982040602,7.2011,138.81,138.77,16.17635079]
[1750982040802,5.06169159,138.8,138.77,16.17635079]
[1750982041000,7.2011,138.81,138.77,16.17635079]
[1750982041303,5.06169159,138.8,138.77,16.17635079]
[1750982041506,7.2011,138.81,138.77,16.17635079]
[1750982041801,5.06161722,138.8,138.77,7.203]
[1750982042003,7.2011,138.81,138.77,16.17635079]
[1750982042204,5.06144807,138.8,138.77,16.17635079]
[1750982042397,7.2016,138.8,138.77,16.17635079]
[1750982042599,175.6302521,181.68,138.79,20.83295107]
[1750982042600,163.92000141,138.9,138.79,20.83295107]
[1750982042900,6.6937968,138.99,138.89,8.95901853]
[1750982043107,6.6937968,139.01,138.96,3.73067623]
[1750982043297,45.15842051,139.04,138.97,36.3]
[1750982043298,3.73067623,139.04,138.97,36.3]
[1750982043502,3.73067623,139.04,138.98,3.73067623]
[1750982043698,40.03067623,139.07,139.0,3.73067623]
[1750982043900,40.03067623,139.07,139.0,40.03067623]
[1750982043901,7.1877,139.07,139.0,40.03067623]
[1750982044207,3.73067623,139.06,139.0,36.3]
[1750982044714,3.73067623,139.05,139.0,36.3]
[1750982044902,40.03067623,139.11,139.03,3.73067623]
[1750982045108,7.1869,139.09,139.04,36.3]
[1750982045302,7.1869,139.09,139.05,3.73067623]
[1750982046103,40.03067623,139.11,139.04,36.3]
[1750982046298,40.03067623,139.11,138.98,652.8604]
[1750982046299,3.73067623,139.08,139.0,40.03067623]
[1750982047007,3.73067623,139.08,139.0,47.22187623]
[1750982047306,40.01067623,139.14,139.06,3.73067623]
[1750982047509,3.73067623,139.08,139.05,36.28]
[1750982047809,3.73067623,139.08,139.03,36.28]
[1750982048200,7.1876,139.07,139.0,3.73067623]
[1750982048404,3.73067623,139.08,139.01,36.28]
[1750982050202,5.58423017,139.08,139.01,36.28]
[1750982050512,7.1889,139.05,139.01,36.28]
[1750982051809,7.1894,139.04,139.01,36.28]
[1750982052002,5.58423017,139.06,139.01,36.28]
[1750982052308,36.26,139.07,139.01,36.28]
[1750982052608,5.58423017,139.08,139.01,36.28]
[1750982052996,7.1881,139.06,139.01,36.28]
[1750982053399,36.26,139.09,139.01,41.86423017]
[1750982053603,7.1877,139.07,139.01,41.86423017]
[1750982053905,36.26,139.09,139.01,41.86423017]
[1750982054304,7.1881,139.06,139.01,49.05483017]
[1750982054499,36.26,139.09,139.01,41.86423017]
[1750982054697,5.58423017,139.11,139.01,41.86423017]
[1750982055607,7.1888,139.05,139.01,36.28]
[1750982055799,5.58423017,139.07,139.01,36.28]
[1750982056409,7.1891,139.05,139.01,36.28]
[1750982056711,5.58423017,139.07,139.01,36.28]
[1750982057810,7.1891,139.05,139.01,36.28]
[1750982059014,7.1892,139.04,139.01,36.28]
[1750982059315,5.58423017,139.07,139.01,36.28]
[1750982059716,5.58452022,139.08,139.01,36.28]
[1750982060403,7.189,139.05,139.01,36.28]
[1750982060814,5.58452022,139.08,139.01,36.28]
[1750982061013,7.1895,139.04,139.01,36.28]
[1750982061607,3.66559596,139.13,139.02,5.58452022]
[1750982061810,45.49011618,139.13,139.02,5.58452022]
[1750982062004,45.48571333,139.13,139.04,5.58011737]
[1750982062207,45.48571333,139.13,139.05,36.24]
[1750982063402,7.1862,139.1,139.05,36.24]
[1750982063811,44.23411737,139.13,139.05,36.24]
[1750982064012,41.82011737,139.13,139.05,36.24]
[1750982064411,41.82011737,139.13,139.05,41.82011737]
[1750982065606,7.1855,139.11,139.06,7.188]
[1750982065812,41.82011737,139.13,139.05,41.82011737]
[1750982066213,2.4993,139.15,139.05,41.82011737]
[1750982066419,8.07769134,139.15,139.06,5.57839134]
[1750982066619,8.07786326,139.15,139.05,41.81856326]
[1750982067122,8.07786326,139.15,139.06,2.4863]
[1750982067616,7.1853,139.12,139.07,7.1874]
[1750982069019,7.1855,139.11,139.07,7.1874]
[1750982069719,7.1851,139.12,139.07,7.1874]
[1750982070414,7.1855,139.11,139.07,7.1874]
[1750982070617,3.71935417,139.13,139.08,7.1869]
[1750982070818,3.71935417,139.13,139.08,43.4269]
[1750982071208,2.4993,139.15,139.08,43.4269]
[1750982071419,39.95935417,139.16,139.08,39.95935417]
[1750982072014,3.71935417,139.16,139.08,39.95935417]
[1750982072213,3.71935417,139.15,139.09,7.1861]
[1750982073116,7.1845,139.13,139.09,7.1861]
[1750982074713,3.71935417,139.15,139.08,36.24]
[1750982074915,3.71912637,139.14,139.08,36.24]
[1750982076017,7.185,139.12,139.08,36.24]
[1750982076616,7.185,139.12,139.08,43.4267]
[1750982077620,3.71912637,139.15,139.08,36.24]
[1750982078428,3.71912637,139.13,139.08,36.24]
[1750982078820,7.1853,139.12,139.08,36.24]
[1750982079531,7.1857,139.11,139.08,36.24]
[1750982079929,3.71901388,139.15,139.08,36.24]
[1750982080122,3.71901388,139.15,139.08,39.95901388]
[1750982080323,3.71901388,139.16,139.09,7.1865]
[1750982081921,7.1845,139.13,139.09,7.1865]
[1750982082927,7.1851,139.12,139.08,47.14581388]
[1750982083126,192.9035204,139.2,139.11,3.71501375]
[1750982083330,3.71654439,139.19,139.12,42.67674211]
[1750982083535,3.71654439,139.19,139.12,39.1726]
[1750982083922,3.71654439,139.17,139.12,2.3526]
[1750982084732,7.184,139.14,139.12,2.3526]
[1750982086829,7.184,139.14,139.13,3.5262272]
[1750982090326,7.1853,139.12,139.08,683.48]
[1750982090531,3.71654439,139.13,139.09,3.54073319]
[1750982090731,3.71654439,139.13,139.08,683.48]
[1750982090931,3.71654439,139.13,139.08,36.8]
[1750982091227,7.1858,139.11,139.08,36.8]
[1750982092138,7.1862,139.1,139.08,36.8]
[1750982092440,3.71654439,139.11,139.06,2.5078]
[1750982092628,3.71654439,139.09,139.05,36.8]
[1750982093230,7.1871,139.08,139.05,36.8]
[1750982094231,3.71654439,139.13,139.05,36.8]
[1750982094432,3.71654439,139.13,139.06,6.53584628]
[1750982094740,3.71654439,139.13,139.05,43.9884]
[1750982095334,3.71654439,139.13,139.06,7.1879]
[1750982095636,7.1859,139.11,139.06,13.72374628]
[1750982095837,7.1859,139.11,139.06,7.1879]
[1750982097438,7.1859,139.11,139.06,13.72374628]
[1750982097636,7.1859,139.11,139.06,7.1879]
[1750982098338,7.1859,139.11,139.06,13.72374628]
[1750982099937,7.1859,139.11,139.07,7.1874]
[1750982100140,7.1859,139.11,139.07,13.72324628]
[1750982101541,7.1859,139.11,139.07,7.1874]
[1750982101744,7.1859,139.11,139.07,13.72324628]
[1750982102247,7.186,139.1,139.07,7.1874]
[1750982102447,7.186,139.1,139.07,13.72324628]
[1750982103134,7.186,139.1,139.07,7.1874]
[1750982103339,7.186,139.1,139.07,13.72324628]
[1750982103837,7.186,139.1,139.07,6.53584628]
[1750982104039,7.186,139.1,139.06,13.72374628]
[1750982104844,3.72005153,139.12,139.06,6.53584628]
[1750982105034,3.72108117,139.08,139.05,43.33584628]
[1750982105239,3.72108117,139.08,139.05,36.8]
[1750982105743,10.90828117,139.08,139.05,36.8]
[1750982106133,3.72108117,139.08,139.05,36.8]
[1750982106342,3.72108117,139.08,139.05,43.33584628]
[1750982106537,7.1879,139.07,139.04,6.53584628]
[1750982112345,7.1886,139.05,139.04,6.53584628]
[1750982112538,36.74,139.1,139.02,36.74]
[1750982112850,3.72108117,139.09,139.03,6.53584628]
[1750982113348,7.1873,139.08,139.03,13.72514628]
[1750982113747,3.72108117,139.09,139.03,13.72514628]
[1750982114648,7.1876,139.07,139.03,13.72514628]
[1750982117453,7.1872,139.08,139.04,6.53584628]
[1750982118551,7.1872,139.08,139.04,13.72474628]
[1750982118751,7.1867,139.09,139.04,6.53584628]
[1750982118954,7.1867,139.09,139.04,11.29254628]
[1750982119153,7.1867,139.09,139.05,7.1881]
[1750982119555,7.1867,139.09,139.05,13.72394628]
[1750982119959,7.1867,139.09,139.06,7.1881]
[1750982120556,7.1867,139.09,139.06,6.53584628]
[1750982120953,7.1867,139.09,139.05,13.72424628]
[1750982121153,3.72108117,139.11,139.05,6.53584628]
[1750982121449,40.46108117,139.13,139.07,6.53584628]
[1750982122759,7.1856,139.11,139.07,13.72304628]
[1750982123152,7.1851,139.12,139.08,7.1869]
[1750982123358,7.1851,139.12,139.08,13.72274628]
[1750982123751,3.72108117,139.15,139.1,6.53584628]
[1750982123951,3.72108117,139.15,139.09,6.53584628]
[1750982124154,7.1848,139.13,139.09,7.1865]
[1750982124355,3.72108117,139.15,139.08,10.25692745]
[1750982124756,7.1849,139.13,139.08,17.44342745]
[1750982124953,3.72108117,139.15,139.08,17.44342745]
[1750982125461,7.1851,139.12,139.08,13.72234628]
[1750982125758,3.72108117,139.13,139.08,6.53584628]
[1750982125960,7.1858,139.11,139.07,6.53584628]
[1750982126359,3.72108117,139.13,139.07,7.1875]
[1750982127059,3.72108117,139.11,139.06,43.27584628]
[1750982127763,7.1862,139.1,139.06,43.27584628]
[1750982128361,7.1862,139.1,139.06,50.46384628]
[1750982130264,7.1862,139.1,139.07,6.53584628]
[1750982131963,3.72108117,139.11,139.07,6.53584628]
[1750982132170,3.72108117,139.09,139.07,6.53584628]
[1750982132471,3.72108117,139.09,139.05,6.53584628]
[1750982133270,3.72108117,139.09,139.06,6.53584628]
[1750982133672,7.187,139.08,139.06,6.53584628]
[1750982135164,3.72108117,139.09,139.06,6.53584628]
[1750982135469,40.46108117,139.11,139.07,6.53584628]
[1750982136571,7.1863,139.1,139.07,6.53584628]
[1750982137473,7.1865,139.09,139.07,6.53584628]
[1750982137967,7.1862,139.1,139.07,6.53584628]
[1750982139273,7.1866,139.09,139.07,6.53584628]
[1750982139572,3.72108117,139.09,139.06,6.53584628]
[1750982139760,36.74,139.11,139.04,6.53584628]
[1750982139761,3.72108117,139.07,139.04,6.53584628]
[1750982139960,3.72108117,139.05,139.04,6.53584628]
[1750982140168,3.72108117,139.05,139.03,6.53584628]
[1750982140574,7.19,139.03,139.01,6.53584628]
[1750982140774,10.91108117,139.03,139.01,8.95901853]
[1750982141272,10.91108117,139.03,139.02,6.70220088]
[1750982142276,7.1905,139.02,138.99,6.70220088]
[1750982142876,3.72108117,139.03,138.99,13.89380088]
[1750982143078,7.1895,139.04,138.99,6.70220088]
[1750982143277,7.1895,139.04,139.0,6.70220088]
[1750982143879,7.1895,139.04,139.01,6.70220088]
[1750982144373,7.1895,139.04,139.0,6.70220088]
[1750982144574,7.1896,139.03,139.0,6.70220088]
[1750982144968,7.1903,139.02,139.0,6.70220088]
[1750982145578,7.1903,139.02,138.97,50.24218117]
[1750982145579,7.1903,139.02,138.99,6.70220088]
[1750982146574,7.1903,139.02,138.98,6.70220088]
[1750982146975,7.1903,139.02,138.99,6.70220088]
[1750982147373,7.1903,139.02,138.98,6.70220088]
[1750982149686,7.1903,139.02,138.97,56.94438205]
[1750982150977,7.1903,139.02,138.98,6.70220088]
[1750982153581,7.1903,139.02,138.97,56.94438205]
[1750982153885,7.1903,139.02,138.98,7.1921]
[1750982154077,7.1903,139.02,138.98,6.70220088]
[1750982154882,7.1897,139.03,138.99,6.70220088]
[1750982155692,7.1897,139.03,138.98,6.70220088]
[1750982155989,7.1897,139.03,138.99,7.1912]
[1750982156184,7.1902,139.02,138.98,6.70220088]
[1750982156387,7.1902,139.02,138.98,13.89390088]
[1750982157091,3.72108117,139.03,138.98,6.70220088]
[1750982157592,3.72108117,139.03,138.97,56.94448205]
[1750982157886,7.191,139.01,138.97,56.94448205]
[1750982161488,7.1912,139.0,138.97,50.24228117]
[1750982161688,3.72108117,139.03,138.97,39.3287]
[1750982161890,7.1921,138.99,138.97,39.3287]
[1750982163285,7.1915,139.0,138.97,39.3287]
[1750982165385,36.8,139.03,138.97,46.03090088]
[1750982165386,40.52108117,139.03,138.97,46.03090088]
[1750982166385,7.1908,139.01,138.97,53.22350088]
[1750982166690,3.72108117,139.01,138.97,39.3287]
[1750982166890,7.1917,138.99,138.94,52.88630088]
[1750982167488,7.1917,138.99,138.95,7.1937]
[1750982167688,7.1917,138.99,138.95,6.70220088]
[1750982167888,7.1917,138.99,138.94,45.69220088]
[1750982168080,7.1917,138.99,138.95,7.1934]
[1750982169094,3.72108117,139.0,138.94,45.69220088]
[1750982169095,7.1924,138.98,138.94,52.88640088]
[1750982169384,3.72108117,139.0,138.94,52.88640088]
[1750982169590,3.72108117,139.0,138.94,45.69220088]
[1750982169994,3.72108117,139.0,138.94,52.88650088]
[1750982170495,7.1924,138.98,138.94,52.88650088]
[1750982170798,3.72108117,139.0,138.94,52.88650088]
[1750982170799,3.72108117,139.0,138.95,7.1937]
[1750982171593,3.72108117,139.02,138.96,7.1931]
[1750982172101,7.191,139.01,138.97,7.1927]
[1750982174191,7.1912,139.0,138.97,7.1927]
[1750982175295,7.1907,139.01,138.97,7.1927]
[1750982175494,7.1907,139.01,138.97,13.89490088]
[1750982176197,7.1904,139.02,138.98,7.192]
[1750982176403,7.1904,139.02,138.98,43.32220088]
[1750982176601,7.1904,139.02,138.98,48.32320088]
[1750982177896,40.34108117,139.06,138.99,6.70220088]
[1750982178295,7.1901,139.03,138.99,13.89370088]
[1750982179404,7.1902,139.02,138.99,13.89370088]
[1750982179812,3.72108117,139.04,138.99,6.70220088]
[1750982181599,7.1904,139.02,138.99,6.70220088]
[1750982183599,7.1904,139.02,139.0,6.70220088]
[1750982184804,7.1904,139.02,138.99,6.70220088]
[1750982185307,7.1904,139.02,139.0,6.70220088]
[1750982185704,7.1906,139.01,138.99,6.70220088]
[1750982186206,7.191,139.01,138.99,6.70220088]
[1750982186409,7.191,139.01,139.0,6.70220088]
[1750982187399,7.1903,139.02,139.0,6.70220088]
[1750982194214,7.1906,139.01,139.0,6.70220088]
[1750982194607,7.1912,139.0,138.99,6.70220088]
[1750982195713,7.1912,139.0,138.98,6.70220088]
[1750982195914,7.1912,139.0,138.99,6.70220088]
[1750982196110,7.1917,138.99,138.98,6.70220088]
[1750982196311,7.1917,138.99,138.98,6.70882826]
[1750982196613,3.72108117,139.0,138.97,6.70882826]
[1750982197006,7.1927,138.98,138.96,6.70882826]
[1750982198714,7.1913,139.0,138.96,13.90202826]
[1750982198915,36.44,139.01,138.98,6.70882826]
[1750982199215,7.1918,138.99,138.96,6.70882826]
[1750982199406,7.1918,138.99,138.97,6.70882826]
[1750982201613,7.1918,138.99,138.95,8.95901853]
[1750982201614,7.1918,138.99,138.96,6.70882826]
[1750982202017,7.1918,138.99,138.97,6.70882826]
[1750982204722,3.72108117,138.98,138.95,6.70882826]
[1750982205112,7.1928,138.97,138.96,6.70882826]
[1750982207621,10.91348117,138.98,138.96,6.70882826]
[1750982207923,36.44,139.01,138.97,6.70882826]
[1750982210010,7.1915,139.0,138.98,6.70882826]
[1750982210215,36.44,139.01,138.98,6.70882826]
[1750982210716,36.44,139.01,138.97,6.70882826]
[1750982211423,7.192,138.99,138.97,6.70882826]
[1750982214727,7.192,138.99,138.98,6.70882826]
[1750982219224,7.192,138.99,138.97,6.70882826]
[1750982220326,7.1922,138.98,138.97,6.70882826]
[1750982221429,7.1919,138.99,138.97,6.70882826]
[1750982221632,7.1919,138.99,138.98,6.70882826]
[1750982223230,36.44,139.01,138.98,6.70882826]
[1750982223421,3.72108117,139.02,138.98,6.70882826]
[1750982224034,3.72108117,139.02,138.97,6.70882826]
[1750982224330,3.72108117,139.0,138.97,6.70882826]
[1750982224517,3.72108117,139.0,138.96,6.70882826]
[1750982225025,3.72108117,139.0,138.97,6.70882826]
[1750982225621,7.1925,138.98,138.97,6.70882826]
[1750982231234,3.72108117,139.0,138.96,8.95901853]
[1750982231235,7.1918,138.99,138.96,8.95901853]
[1750982231429,7.1918,138.99,138.98,6.7135907]
[1750982231634,3.72108117,139.0,138.98,6.7135907]
[1750982231835,7.1915,139.0,138.98,6.7135907]
[1750982233633,121.77830345,139.04,138.98,6.7135907]
[1750982233836,121.77830345,139.04,139.01,6.71029796]
[1750982234432,7.1896,139.03,139.01,6.71029796]
[1750982234840,7.1901,139.02,139.01,6.71029796]
[1750982237335,7.1898,139.03,139.01,6.71029796]
[1750982237943,128.96750345,139.04,139.01,6.71029796]
[1750982238142,128.96750345,139.04,139.02,6.71029796]
[1750982239237,121.77830345,139.04,139.02,6.71029796]